[Event "Belgrade Spring IM-I 2021"]
[Site "Belgrade"]
[Date "2021.04.22"]
[Round "9.6"]
[White "Savitha Shri B"]
[Black "Djokic, Nenad"]
[Result "1/2-1/2"]
[ECO "C95"]
[WhiteElo "2261"]
[BlackElo "2329"]
[Annotator "ChessBase"]
[PlyCount "153"]
[EventDate "2021.04.16"]
[EventType "tourn"]
[EventCountry "SRB"]
[SourceTitle "playchess.com"]
[Source "ChessBase"]
[SourceQuality "1"]
[TimeControl "40/5400+30:1800+30"]

1. e4 {[%emt 0:00:00]} e5 {[%emt 0:02:59]} 2. Nf3 {[%emt 0:00:00]} Nc6 {[%emt 0:00:19]} 3. Bb5 {[%emt 0:00:00]} a6 {[%emt 0:00:07]} 4. Ba4 {[%emt 0:00:00]} Nf6 {[%emt 0:00:08]} 5. O-O {[%emt 0:00:00]} Be7 {[%emt 0:00:09]} 6. Re1 {[%emt 0:00:00]} b5 {[%emt 0:00:09]} 7. Bb3 {[%emt 0:00:00]} d6 {[%emt 0:00:06]} 8. c3 {[%emt 0:00:01]} O-O {[%emt 0:00:09]} 9. h3 {[%emt 0:00:02]} Nb8 {[%emt 0:01:18]} 10. d4 {[%emt 0:00:06]} Nbd7 {[%emt 0:00:06]} 11. Nbd2 {[%emt 0:00:08]} Bb7 {[%emt 0:00:14]} 12. Bc2 {[%emt 0:00:07]} c5 {[%emt 0:01:23]} 13. Nf1 {[%emt 1:36:06]} cxd4 14. cxd4 exd4 15. Nxd4 {[%emt 0:00:00]} Re8 {[%emt 0:02:15]} 16. Nf3 {[%emt 0:00:00]} Rf8 {[%emt 0:01:04]} 17. Nd4 {[%emt 0:00:00]} Re8 {[%emt 0:00:20]} 18. Nf5 {[%emt 0:00:00]} Rc8 {[%emt 1:28:14]} 19. Bg5 {[%emt 0:00:00]} Bf8 {[%emt 0:00:00]} 20. N1g3 {[%emt 0:00:00]} h6 {[%emt 0:00:00]} 21. Bf4 {[%emt 0:00:00]} Ne5 {[%emt 0:00:00]} 22. Bb3 {[%emt 0:00:00]} Nc4 {[%emt 0:00:00]} 23. Bxc4 {[%emt 0:00:00]} Rxc4 {[%emt 0:00:00]} 24. b3 {[%emt 0:00:00]} Rc8 {[%emt 0:00:00]} 25. Bxd6 {[%emt 0:00:00]} Nxe4 {[%emt 0:00:00]} 26. Bxf8 {[%emt 0:00:00]} Kxf8 {[%emt 0:00:00]} 27. Nxe4 {[%emt 0:00:00]} Rxe4 {[%emt 0:00:00]} 28. Rxe4 {[%emt 0:00:00]} Qxd1+ {[%emt 0:00:00]} 29. Rxd1 {[%emt 0:00:00]} Bxe4 {[%emt 0:00:00]} 30. Ne3 {[%emt 0:00:00]} g6 {[%emt 0:00:00]} 31. f3 {[%emt 0:00:00]} Bc6 {[%emt 0:00:00]} 32. Kf2 {[%emt 0:00:00]} Ke7 {[%emt 0:00:00]} 33. Ng4 {[%emt 0:00:00]} h5 {[%emt 0:00:48]} 34. Ne5 {[%emt 0:00:00]} Be8 {[%emt 0:00:06]} 35. Rd2 {[%emt 0:00:00]} h4 {[%emt 0:01:47]} 36. f4 {[%emt 0:00:00]} a5 {[%emt 0:03:18]} 37. Re2 {[%emt 0:00:00]} Kd6 {[%emt 0:00:38]} 38. Kf3 {[%emt 0:00:00]} f6 {[%emt 0:00:54]} 39. Ng4 {[%emt 0:00:39]} Bc6+ {[%emt 0:00:23]} 40. Kf2 {[%emt 0:00:03]} Rf8 {[%emt 0:00:27]} 41. g3 {[%emt 0:30:51]} hxg3+ {[%emt 0:31:03]} 42. Kxg3 {[%emt 0:00:00]} a4 {[%emt 0:00:00]} 43. Rd2+ {[%emt 0:00:00]} Kc5 {[%emt 0:00:00]} 44. Rc2+ {[%emt 0:00:00]} Kb6 {[%emt 0:00:00]} 45. bxa4 {[%emt 0:00:00]} bxa4 {[%emt 0:00:00]} 46. Ne3 {[%emt 0:00:00]} Rd8 {[%emt 0:00:00]} 47. Nc4+ {[%emt 0:00:00]} Ka6 {[%emt 0:00:00]} 48. Ne5 {[%emt 0:00:00]} Be8 {[%emt 0:00:00]} 49. Ng4 {[%emt 0:00:00]} Rd6 {[%emt 0:00:00]} 50. Ne3 {[%emt 0:00:00]} Rd3 {[%emt 0:00:00]} 51. Kf3 {[%emt 0:00:00]} Kb5 {[%emt 0:00:00]} 52. Ke4 {[%emt 0:00:00]} Rd6 {[%emt 0:00:00]} 53. Rb2+ {[%emt 0:00:00]} Kc5 {[%emt 0:00:00]} 54. Rc2+ {[%emt 0:00:00]} Kb4 {[%emt 0:00:00]} 55. Rb2+ {[%emt 0:00:00]} Kc3 {[%emt 0:00:00]} 56. Rc2+ {[%emt 0:00:00]} Kb4 {[%emt 0:00:00]} 57. Rb2+ {[%emt 0:00:00]} Kc5 {[%emt 0:00:00]} 58. Rc2+ {[%emt 0:00:00]} Kb5 {[%emt 0:00:00]} 59. Rb2+ {[%emt 0:00:00]} Ka6 {[%emt 0:00:00]} 60. Nc4 {[%emt 0:00:00]} Bc6+ {[%emt 0:00:00]} 61. Ke3 {[%emt 0:00:00]} Re6+ {[%emt 0:00:00]} 62. Kd4 {[%emt 0:00:00]} Bb5 {[%emt 0:00:00]} 63. Ne3 {[%emt 0:00:00]} Rd6+ {[%emt 0:00:35]} 64. Kc5 {[%emt 0:00:06]} Rc6+ {[%emt 0:00:10]} 65. Kd4 {[%emt 0:00:26]} Re6 {[%emt 0:04:06]} 66. Nd5 {[%emt 0:00:16]} Rd6 {[%emt 0:01:04]} 67. Rc2 {[%emt 0:05:07]} Bd7 {[%emt 0:04:05]} 68. h4 {[%emt 0:01:54]} Bf5 {[%emt 0:02:13]} 69. Rc4 {[%emt 0:02:17]} Ka5 {[%emt 0:00:42]} 70. Rc5+ {[%emt 0:00:02]} Ka6 {[%emt 0:00:03]} 71. Rc4 {[%emt 0:00:06]} Bd7 {[%emt 0:00:26]} 72. Rc5 {[%emt 0:00:30]} a3 {[%emt 0:02:19]} 73. Kc3 {[%emt 0:02:55]} Be6 {[%emt 0:00:55]} 74. Kd4 {[%emt 0:03:06]} Bf5 {[%emt 0:00:45]} 75. Rc3 {[%emt 0:00:09]} Be6 {[%emt 0:00:17]} 76. Rc5 {[%emt 0:00:01]} Bf5 {[%emt 0:00:02]} 77. Rc3 {[%emt 0:00:06]} 1/2-1/2

[Event "Belgrade Spring IM-I 2021"]
[Site "Belgrade"]
[Date "2021.04.22"]
[Round "9.7"]
[White "Jovanovic, Sasa T"]
[Black "Krasteva, Beloslava"]
[Result "1/2-1/2"]
[ECO "B50"]
[WhiteElo "2155"]
[BlackElo "2287"]
[Annotator "ChessBase"]
[PlyCount "58"]
[EventDate "2021.04.16"]
[EventType "tourn"]
[EventCountry "SRB"]
[SourceTitle "playchess.com"]
[Source "ChessBase"]
[SourceQuality "1"]
[TimeControl "40/5400+30:1800+30"]

1. e4 {[%emt 0:00:00]} c5 {[%emt 0:00:00]} 2. Nf3 {[%emt 0:00:00]} d6 {[%emt 0:00:05]} 3. Bc4 {[%emt 0:00:00]} Nf6 {[%emt 0:01:45]} 4. d3 {[%emt 0:00:22]} Nc6 {[%emt 0:01:05]} 5. h3 {[%emt 0:01:57]} e6 {[%emt 0:05:04]} 6. Bb3 {[%emt 0:01:43]} Be7 {[%emt 0:01:11]} 7. O-O {[%emt 0:00:10]} O-O {[%emt 0:00:46]} 8. c3 {[%emt 0:00:06]} b6 {[%emt 0:01:51]} 9. Re1 {[%emt 0:00:08]} Bb7 {[%emt 0:03:04]} 10. d4 {[%emt 0:00:59]} Rc8 {[%emt 0:14:39]} 11. d5 {[%emt 0:03:56]} exd5 {[%emt 0:01:15]} 12. exd5 {[%emt 0:03:25]} Na5 {[%emt 0:00:57]} 13. c4 {[%emt 0:07:48]} b5 {[%emt 0:00:38]} 14. cxb5 {[%emt 0:00:27]} Nxb3 {[%emt 0:02:08]} 15. axb3 {[%emt 0:00:39]} Nxd5 {[%emt 0:01:09]} 16. Nc3 {[%emt 0:00:39]} Nxc3 {[%emt 0:00:50]} 17. bxc3 {[%emt 0:00:04]} Bf6 {[%emt 0:00:50]} 18. Qd3 {[%emt 0:03:03]} Re8 {[%emt 0:09:00]} 19. Rxe8+ {[%emt 0:01:34]} Qxe8 {[%emt 0:00:09]} 20. Bg5 {[%emt 0:00:10]} Bxf3 {[%emt 0:08:05]} 21. Bxf6 {[%emt 0:00:11]} Be4 {[%emt 0:01:06]} 22. Qg3 {[%emt 0:00:06]} Bg6 {[%emt 0:00:47]} 23. Bg5 {[%emt 0:00:21]} Qxb5 {[%emt 0:07:01]} 24. Rxa7 {[%emt 0:05:48]} h6 {[%emt 0:01:39]} 25. Be7 {[%emt 0:06:39]} Qxb3 {[%emt 0:02:41]} 26. Bxd6 {[%emt 0:00:30]} Qb6 {[%emt 0:02:10]} 27. Rc7 {[%emt 0:01:02]} Rxc7 {[%emt 0:06:47]} 28. Bxc7 {[%emt 0:00:13]} Qb1+ {[%emt 0:00:07]} 29. Kh2 {[%emt 0:00:15]} Qd3 {[%emt 0:00:25]} 1/2-1/2

[Event "Belgrade Spring IM-I 2021"]
[Site "Belgrade"]
[Date "2021.04.22"]
[Round "9.8"]
[White "Ivanovic, Marko"]
[Black "Milanovic, Slavisa"]
[Result "1/2-1/2"]
[ECO "C18"]
[WhiteElo "2282"]
[BlackElo "2301"]
[Annotator "ChessBase"]
[PlyCount "28"]
[EventDate "2021.04.16"]
[EventType "tourn"]
[EventCountry "SRB"]
[SourceTitle "playchess.com"]
[Source "ChessBase"]
[SourceQuality "1"]
[TimeControl "40/5400+30:1800+30"]

1. e4 {[%emt 0:17:05]} e6 {[%emt 0:00:00]} 2. d4 {[%emt 0:00:03]} d5 {[%emt 0:00:00]} 3. Nc3 {[%emt 0:00:04]} Bb4 {[%emt 0:00:00]} 4. e5 {[%emt 0:00:03]} c5 {[%emt 0:00:04]} 5. a3 {[%emt 0:00:04]} Bxc3+ {[%emt 0:00:48]} 6. bxc3 {[%emt 0:00:03]} Ne7 {[%emt 0:02:11]} 7. Qg4 {[%emt 0:00:05]} Qc7 {[%emt 0:00:14]} 8. Bd3 {[%emt 0:00:06]} c4 {[%emt 0:01:24]} 9. Be2 {[%emt 0:02:27]} O-O {[%emt 0:00:12]} 10. h4 {[%emt 0:02:45]} f6 {[%emt 0:02:28]} 11. f4 {[%emt 0:02:45]} Qa5 {[%emt 0:03:14]} 12. Bd2 {[%emt 0:00:22]} Qa4 {[%emt 0:02:40]} 13. Bd1 {[%emt 0:00:28]} Qb5 {[%emt 0:00:53]} 14. Bc1 {[%emt 0:10:51]} Qa5 {[%emt 0:00:10]} 1/2-1/2

[Event "Belgrade Spring IM-I 2021"]
[Site "Belgrade"]
[Date "2021.04.22"]
[Round "9.9"]
[White "Blagojevic, Tijana"]
[Black "Govedarica, Radovan"]
[Result "1-0"]
[ECO "B30"]
[WhiteElo "2193"]
[BlackElo "2300"]
[Annotator "ChessBase"]
[PlyCount "58"]
[EventDate "2021.04.16"]
[EventType "tourn"]
[EventCountry "SRB"]
[SourceTitle "playchess.com"]
[Source "ChessBase"]
[SourceQuality "1"]
[TimeControl "40/5400+30:1800+30"]

1. e4 {[%emt 0:00:00]} c5 {[%emt 0:00:00]} 2. Nf3 {[%emt 0:00:00]} Nc6 {[%emt 0:00:00]} 3. Bb5 {[%emt 0:00:00]} Qc7 {[%emt 0:00:13]} 4. Nc3 {[%emt 0:00:59]} e6 {[%emt 0:00:04]} 5. Bxc6 {[%emt 0:00:34]} Qxc6 {[%emt 0:00:02]} 6. d4 {[%emt 0:00:06]} cxd4 {[%emt 0:01:10]} 7. Nxd4 {[%emt 0:00:05]} Qc7 {[%emt 0:00:08]} 8. O-O {[%emt 0:00:37]} a6 {[%emt 0:00:48]} 9. Re1 {[%emt 0:00:52]} d6 {[%emt 0:08:24]} 10. Bf4 {[%emt 0:03:13]} Nf6 {[%emt 0:07:36]} 11. Nf5 {[%emt 0:15:42]} e5 {[%emt 0:14:22]} 12. Bg5 {[%emt 0:01:21]} Bxf5 {[%emt 0:03:32]} 13. exf5 {[%emt 0:00:30]} Be7 {[%emt 0:00:06]} 14. Bxf6 {[%emt 0:00:36]} Bxf6 {[%emt 0:00:01]} 15. Nd5 {[%emt 0:00:13]} Qd8 {[%emt 0:00:13]} 16. Qd3 {[%emt 0:04:32]} O-O {[%emt 0:00:08]} 17. c3 {[%emt 0:00:27]} Rc8 {[%emt 0:02:26]} 18. Rad1 {[%emt 0:00:45]} Re8 {[%emt 0:01:02]} 19. Qe4 {[%emt 0:02:24]} b5 {[%emt 0:00:21]} 20. b3 {[%emt 0:00:32]} Bg5 {[%emt 0:04:26]} 21. Rd3 {[%emt 0:01:55]} Rc5 {[%emt 0:06:52]} 22. Red1 {[%emt 0:03:11]} g6 {[%emt 0:00:43]} 23. Rf3 {[%emt 0:06:00]} Qa8 {[%emt 0:03:33]} 24. h4 {[%emt 0:06:34]} Bxh4 {[%emt 0:03:13]} 25. f6 {[%emt 0:10:47]} Bg5 {[%emt 0:00:27]} 26. Qg4 {[%emt 0:06:03]} h6 {[%emt 0:03:09]} 27. Ne7+ {[%emt 0:02:43]} Rxe7 {[%emt 0:04:12]} 28. fxe7 {[%emt 0:00:03]} Bxe7 {[%emt 0:00:02]} 29. Qd7 {[%emt 0:00:34]} Qf8 {[%emt 0:37:17]} 1-0